[Event "7th Sharjah Masters 2024"]
[Site "Sharjah"]
[Date "2024.05.14"]
[Round "1.12"]
[White "Muradli, Mahammad"]
[Black "Deac, Bogdan-Daniel"]
[Result "1-0"]
[ECO "E05"]
[WhiteElo "2561"]
[BlackElo "2693"]
[Annotator "TA"]
[PlyCount "171"]
[EventDate "2024.05.13"]
[EventType "swiss"]
[EventCountry "UAE"]
[SourceTitle "playchess.com"]
[Source "ChessBase"]
[SourceQuality "1"]
[TimeControl "5400+30"]

{[%evp 18,171,18,20,18,5,0,0,0,0,10,10,10,10,13,14,10,0,0,0,0,0,0,-12,0,-6,0,-22,-7,-34,0,-39,-42,-115,-89,-125,-122,-141,-36,-37,-14,-26,0,0,0,0,0,0,0,-3,0,0,0,0,0,0,0,0,0,0,60,45,78,13,24,26,37,0,17,5,32,5,20,0,13,0,0,0,27,0,0,0,7,0,0,0,0,0,0,0,8,0,0,0,8,8,16,8,8,8,8,8,8,0,30,8,94,14,174,174,174,174,174,174,174,174,174,174,187,174,174,181,181,0,167,0,167,167,167,167,167,167,167,124,181,93,106,0,181,181,181,107,134,160,172,0,408,384,1479,1464,29988,29989,29990,29991,29991,10822]} 1. d4 {[%emt 0:00:30]} Nf6 {[%emt 0:00:02]} 2. c4 {[%emt 0:00:14]} e6 {[%emt 0:00:03]} 3. Nf3 {[%emt 0:00:08]} d5 {[%emt 0:00:23]} 4. g3 {[%emt 0:00:08]} Be7 {[%emt 0:07:57]} 5. Bg2 {[%emt 0:01:28]} O-O {[%emt 0:00:03]} 6. O-O {[%emt 0:00:23]} dxc4 {[%emt 0:00:03]} 7. Qc2 {[%emt 0:00:20]} a6 {[%emt 0:01:47]} 8. a4 {[%emt 0:00:09]} Bd7 {[%emt 0:00:05]} 9. Qxc4 {[%emt 0:00:21]} Bc6 {[%emt 0:00:04]} 10. Bf4 {[%emt 0:00:14]} Bd6 {[%emt 0:00:36]} 11. Qc1 {[%emt 0:00:20]} a5 {[%emt 0:01:54]} 12. Bg5 {[%emt 0:08:45]} Na6 {[%emt 0:15:12] The position is equal.} 13. Nbd2 {[%emt 0:05:03][%cal Oe2e4]} Be7 {[%emt 0:02:36]} 14. Rd1 {[%emt 0:08:45]} Nb4 {[%emt 0:05:30]} 15. Nc4 {[%emt 0:07:28]} Bd5 {[%emt 0:15:14]} 16. Nfe5 {[%emt 0:04:53]} b6 {[%emt 0:00:26]} 17. Ne3 {[%emt 0:10:16]} Bxg2 {[%emt 0:10:42]} 18. Kxg2 {[%emt 0:00:42]} h6 {[%emt 0:06:12]} 19. Bxf6 {[%emt 0:08:50]} Bxf6 {[%emt 0:00:17]} 20. N3c4 {[%emt 0:00:59]} Qd5+ {[%emt 0:05:47]} 21. f3 {[%emt 0:00:57]} Rad8 {[%emt 0:03:10]} 22. e3 {[%emt 0:14:19]} Qb7 {[%emt 0:10:20]} 23. Qc3 {[%emt 0:02:12]} Qa6 {[%emt 0:03:20]} 24. Kf2 {[%emt 0:08:35]} c5 {[%emt 0:01:12]} 25. dxc5 {[%emt 0:02:44]} (25. f4 $15) 25... bxc5 {[%emt 0:07:36]} 26. b3 {[%emt 0:07:28]} Rd5 {[%emt 0:00:30] And now ...Rfd8 would win.} 27. e4 {[%emt 0:02:17] [#]} Rd4 {[%emt 0:00:12]} 28. Ng4 $15 {[%emt 0:01:32]} Be7 {[%emt 0:02:11]} 29. Rd2 {[%emt 0:01:37]} Rxd2+ {[%emt 0:00:52]} (29... f5 {feels hotter.} 30. exf5 Bg5 31. f4 Bxf4 32. gxf4 Rxf4+ 33. Kg3 R4xf5 34. Rf2 Rxf2 35. Nxf2 Qa8) 30. Qxd2 {[%emt 0:00:02]} Rd8 {[%emt 0:00:23]} 31. Qe2 {[%emt 0:00:05]} Nc6 {[%emt 0:00:46]} 32. Rb1 {[%emt 0:03:22]} Nd4 {[%emt 0:00:20]} 33. Qd3 {[%emt 0:00:24]} Qa7 {[%emt 0:00:27]} 34. Qc3 {[%emt 0:00:34]} Nc6 {[%emt 0:00:26]} 35. Nge3 {[%emt 0:01:21]} Bf6 {[%emt 0:00:19]} 36. e5 {[%emt 0:00:08]} Be7 {[%emt 0:00:08]} 37. Rd1 {[%emt 0:00:39]} Nd4 {[%emt 0:01:16]} 38. Nc2 {[%emt 0:00:39] Excellent horsemanship.} (38. Qxa5 Qb7 39. Nd2 Nxb3 $15) 38... Ra8 {[%emt 0:00:33]} (38... Rd5 $11) 39. Kg2 {[%emt 0:00:26]} Nc6 {[%emt 0:00:31]} 40. Rd3 {[%emt 0:00:40] White has more active pieces.} (40. N2a3 $1 $16) 40... Rb8 {[%emt 0:00:31]} 41. Qd2 {[%emt 0:00:14]} Qa8 {[%emt 0:00:29]} 42. Qe1 {[%emt 0:00:44]} Qa6 {[%emt 0:00:32][%cal Ob8b3]} 43. Qe4 {[%emt 0:00:09]} Qc8 {[%emt 0:00:22]} 44. h4 {[%emt 0:00:52]} h5 {[%emt 0:00:17]} 45. Kh3 {[%emt 0:00:31]} Qc7 {[%emt 0:00:18]} 46. Kg2 {[%emt 0:00:29][%cal Bh3g2,Bg2f1,Bf1e2,Be2d1,Bd1c1,Bc1c2][%mdl 32]} Bf8 {[%emt 0:00:27]} 47. Kf1 {[%emt 0:00:27]} Ne7 {[%emt 0:01:02]} 48. N2e3 {[%emt 0:00:35]} Nc6 {[%emt 0:00:15]} 49. Nc2 {[%emt 0:00:05] Against Nd4} g6 {[%emt 0:00:41]} 50. Ke2 {[%emt 0:00:56]} Bg7 {[%emt 0:00:19]} 51. f4 {[%emt 0:00:19]} Bf8 {[%emt 0:00:04]} 52. Kd1 {[%emt 0:00:32]} Be7 {[%emt 0:00:58]} 53. Kc1 {[%emt 0:00:16]} Nd4 {[%emt 0:00:42]} 54. Nxd4 {[%emt 0:00:38]} (54. Kb2 {seems wilder.} Qd7 55. Nxd4 cxd4 56. Kc2) 54... cxd4 {[%emt 0:00:03]} 55. Qxd4 {[%emt 0:00:25]} Qc6 {[%emt 0:00:10]} 56. Qf2 {[%emt 0:00:49]} Ba3+ {[%emt 0:01:20]} 57. Kc2 {[%emt 0:00:29]} Bf8 {[%emt 0:00:32]} 58. Qf3 {[%emt 0:00:28]} Qc5 {[%emt 0:00:05]} 59. Qe3 {[%emt 0:00:33]} Qc6 {[%emt 0:00:29]} 60. Qf3 {[%emt 0:00:06]} Qc5 {[%emt 0:00:28][%cal Ob8b3]} 61. Rd2 {[%emt 0:00:23]} Qg1 {[%emt 0:00:36]} (61... Kg7 $11) 62. Rd1 {[%emt 0:00:43]} (62. Nxa5 Bb4 63. Nc6 Rc8 64. Rd8+ Rxd8 65. Nxd8 Qd4 $17) (62. Nd6 $1 $16) 62... Qh2+ $2 {[%emt 0:00:13]} (62... Qc5 $1 $11) 63. Kb1 $1 $18 {[%emt 0:00:25]} Bc5 {[%emt 0:01:08]} 64. Nxa5 {[%emt 0:00:35]} Kg7 {[%emt 0:00:21]} 65. Nc4 {[%emt 0:00:43]} Bf2 {[%emt 0:00:13]} 66. Rd3 {[%emt 0:00:26]} Qg1+ {[%emt 0:00:18]} 67. Ka2 {[%emt 0:00:14]} Bc5 {[%emt 0:00:40]} 68. Rd1 {[%emt 0:00:52]} Qh2+ {[%emt 0:00:06]} 69. Rd2 {[%emt 0:00:03]} Qg1 {[%emt 0:00:10]} 70. Rd1 {[%emt 0:00:54]} Qh2+ {[%emt 0:00:04]} 71. Rd2 {[%emt 0:00:07]} Qg1 {[%emt 0:00:10]} 72. Qg2 {[%emt 0:00:39] Qxg1 is the strong threat.} Qe1 {[%emt 0:01:49]} 73. Rd3 {[%emt 0:00:42]} Bb4 {[%emt 0:01:10]} 74. Qf3 {[%emt 0:00:33] aiming for Rd1.} Qg1 {[%emt 0:00:17]} 75. Qe2 {[%emt 0:00:33]} Bc5 {[%emt 0:00:37]} (75... Rc8 $16 {was necessary.} 76. Kb2 Rc7) 76. Nd2 {[%emt 0:00:32]} (76. Qc2 $18) 76... Qc1 $16 {[%emt 0:00:31] [#] ( -> ...Qc2+)} 77. Nc4 {[%emt 0:00:28]} (77. Nb1 $1 $16 {Black must now prevent Rd1.} Bb4 78. Qd1) 77... Qg1 $1 $18 {[%emt 0:00:07]} 78. Nd6 {[%emt 0:00:29]} Bb4 {[%emt 0:00:46]} 79. Ne4 {[%emt 0:00:28]} ({White should play} 79. Qc2 $18) 79... Qc1 $16 {[%emt 0:00:28]} 80. Qb2 {[%emt 0:00:34]} Qf1 {[%emt 0:00:45] [#]} 81. Qc2 $2 {[%emt 0:00:18]} (81. Rd4 $1 $18) 81... Qe1 $2 {[%emt 0:00:27][%mdl 8192]} (81... Rc8 $1 $11 {and Black is okay.} 82. Qxc8 Qxd3) 82. Rd7 $18 {[%emt 0:00:37] Strongly threatening Ng5.} Rf8 $2 {[%emt 0:00:17]} (82... Rc8 83. Qxc8 Qxe4) 83. Ng5 {[%emt 0:00:33]} Kg8 {[%emt 0:00:45] [#]} 84. Nxf7 $1 {[%emt 0:00:32][%cal Rc2g6][%mdl 512] White mates.} Qxg3 {[%emt 0:00:02]} (84... Qd2 85. Rxd2) 85. Ng5 {[%emt 0:00:13]} Rf5 {[%emt 0:00:01]} 86. Nxe6 {[%emt 0:00:20] Weighted Error Value: White=0.11 (very precise) /Black=0.11 (very precise) .  Loses game:     	---       	Black=1      Missed win:     	White=1     	---        Mistake:       	White=6     	Black=6      Inaccurate:     	White=6     	Black=6      OK:         	White=17    	Black=28     Best:        	White=5     	Black=5      Strong:       	White=1     	Black=1} (86. Qc8+ $142 Bf8 87. Rg7+ (87. Nxe6 Qf2+ 88. Ka1 Qe1+ 89. Kb2 Qf2+ 90. Qc2 Ba3+ 91. Kb1 Qxc2+ 92. Kxc2 Bb4 $18) 87... Kxg7 88. Qc7+ (88. Qxe6 $2 {is the wrong capture.} Qg2+ 89. Kb1 Qb7 $19) 88... Be7 89. Qxe7+ Kg8 90. Qe8+ (90. Qxe6+ Kf8 $18) 90... Kg7 91. Nxe6+ (91. Qxe6 Qf2+ 92. Kb1 Qe1+ 93. Kc2 Qf2+ 94. Kd1 Qg1+ 95. Kc2 Qg2+ 96. Kc3 Qg3+ 97. Kc2 Qf2+ 98. Kb1 Qe1+ 99. Kb2 Qd2+ 100. Ka3 Qc1+ 101. Ka2 Qd2+ 102. Kb1 Qd1+ 103. Ka2 Qd2+ 104. Ka3 Qc1+ 105. Ka2 Qc2+ 106. Ka1 Kh6 $11) 91... Kh7 92. Qe7+ Rf7 93. Qxf7+ Kh8 94. Qg7#) 1-0

[Event "7th Sharjah Masters 2024"]
[Site "Sharjah"]
[Date "2024.05.14"]
[Round "1.13"]
[White "Sjugirov, Sanan"]
[Black "Kadric, Denis"]
[Result "1/2-1/2"]
[ECO "D21"]
[WhiteElo "2692"]
[BlackElo "2558"]
[Annotator "TA"]
[PlyCount "122"]
[EventDate "2024.05.13"]
[EventType "swiss"]
[EventCountry "UAE"]
[SourceTitle "playchess.com"]
[Source "ChessBase"]
[SourceQuality "1"]
[TimeControl "5400+30"]

{[%evp 43,122,43,84,20,21,39,54,0,7,5,10,0,26,22,26,14,18,19,36,36,32,29,29,29,29,11,36,37,31,5,8,0,8,0,0,0,0,0,0,0,0,0,0,0,0,0,0,0,0,0,0,0,0,0,0,0,0,0,0,0,0,0,8,8,8,8,8,8,8,8,8,8,8,8,8,8,8,8,8,-8,-8]} 1. d4 {[%emt 0:00:05]} d5 {[%emt 0:00:16]} 2. c4 {[%emt 0:00:11]} dxc4 {[%emt 0:00:06]} 3. Nf3 {[%emt 0:01:24]} e6 {[%emt 0:00:17]} 4. Qa4+ {[%emt 0:01:18]} Nd7 {[%emt 0:01:00]} 5. e4 {[%emt 0:15:42]} c5 {[%emt 0:00:12]} 6. Bxc4 {[%emt 0:24:33] D21: Queen's Gambit Accepted: 3 Nf3 sidelines.} cxd4 {[%emt 0:00:11]} 7. O-O {[%emt 0:00:28]} Bc5 {[%emt 0:00:09]} 8. Nbd2 $146 {[%emt 0:19:24]} ({Predecessor:} 8. b4 Bd6 9. Na3 Bb8 10. Bg5 Ne7 11. Nxd4 h6 12. Bh4 g5 13. Bg3 Qb6 14. Bb5 {0-1 Sargsyan,S (2631)-Anton Guijarro,D (2653) FIDE Grand Swiss 2023 (9)}) 8... Ne7 {[%emt 0:05:47]} 9. e5 {[%emt 0:03:34]} Ng6 {[%emt 0:18:56]} 10. Bd3 {[%emt 0:09:06]} O-O {[%emt 0:07:33]} 11. Bxg6 {[%emt 0:00:47]} hxg6 {[%emt 0:09:44]} 12. Ne4 {[%emt 0:00:10]} b6 {[%emt 0:00:24]} 13. Bg5 {[%emt 0:03:14]} Qe8 {[%emt 0:02:28]} 14. b4 {[%emt 0:08:55]} Bb7 {[%emt 0:04:22]} 15. Rfe1 {[%emt 0:00:17]} Be7 {[%emt 0:01:01]} 16. Bxe7 {[%emt 0:00:33]} Qxe7 {[%emt 0:00:02]} 17. Rad1 {[%emt 0:01:16]} a5 {[%emt 0:10:05]} 18. Rxd4 {[%emt 0:01:17]} Bd5 {[%emt 0:01:00]} 19. b5 {[%emt 0:01:01]} Rfc8 {[%emt 0:09:06]} 20. Neg5 {[%emt 0:01:07]} Qc5 {[%emt 0:15:37]} 21. Rh4 {[%emt 0:03:59]} Bc4 {[%emt 0:03:57]} 22. Nd2 {[%emt 0:00:21]} (22. h3 $16 Qb4 (22... Qxb5 23. Rxc4 Qxc4 24. Qxd7 $16)) 22... Qe7 {[%emt 0:01:44]} (22... Bxb5 $2 {is the wrong capture.} 23. Qf4 Nxe5 24. Rh7 $18 (24. Qxe5 $2 Qxe5 $19)) (22... Nxe5 $2 23. Rxe5 Bd5 (23... Qxe5 $2 24. Rh8+ Kxh8 25. Nxf7+ Kg8 26. Nxe5 $18) 24. Re1 $18) 23. Rxc4 {[%emt 0:00:46]} (23. Nxc4 $16 {[%cal Oc4d6] Nd6! is the strong threat.} Qxg5 24. Rd4) 23... Qxg5 $11 {[%emt 0:00:08]} 24. Nf3 {[%emt 0:00:03]} Qe7 {[%emt 0:01:08]} 25. Rd1 {[%emt 0:00:48]} (25. Rh4 $1 $14) 25... Nc5 {[%emt 0:01:30]} 26. Qc2 {[%emt 0:00:05]} Rd8 {[%emt 0:00:02]} 27. h3 {[%emt 0:01:14]} Rxd1+ {[%emt 0:00:26]} 28. Qxd1 {[%emt 0:00:03]} Rd8 {[%emt 0:00:06]} 29. Rd4 {[%emt 0:00:16]} Rxd4 {[%emt 0:00:15]} 30. Qxd4 {[%emt 0:00:04]} Qd7 {[%emt 0:00:03]} 31. Qxd7 {[%emt 0:01:11]} Nxd7 {[%emt 0:00:03]} 32. Kf1 {[%emt 0:00:03]} f6 {[%emt 0:00:36]} 33. exf6 {[%emt 0:01:42]} gxf6 {[%emt 0:00:03]} 34. h4 {[%emt 0:00:05]} Kf7 {[%emt 0:00:35]} 35. Ke2 {[%emt 0:00:11]} f5 {[%emt 0:02:47]} 36. Kd3 {[%emt 0:00:55]} Ke7 {[%emt 0:00:24]} 37. Ng5 {[%emt 0:00:50]} Kd6 {[%emt 0:01:11]} 38. Kd4 {[%emt 0:00:19]} e5+ {[%emt 0:01:06]} 39. Kc4 {[%emt 0:00:03]} Nf6 {[%emt 0:03:30]} 40. f3 {[%emt 0:01:09]} Ke7 {[%emt 0:00:24]} 41. g3 {[%emt 0:01:16]} Kd6 {[%emt 0:00:20]} 42. Nf7+ {[%emt 0:00:57]} Ke6 {[%emt 0:00:04]} 43. Ng5+ {[%emt 0:00:05]} Kd6 {[%emt 0:00:06]} 44. Nf7+ {[%emt 0:00:56]} Ke6 {[%emt 0:00:02]} 45. Nh8 {[%emt 0:00:17]} Nh5 {[%emt 0:00:56]} 46. Nxg6 {[%emt 0:00:04]} Nxg3 {[%emt 0:00:02]} 47. Nf8+ {[%emt 0:00:14]} Kd6 {[%emt 0:00:47]} 48. Nh7 {[%emt 0:00:14]} e4 {[%emt 0:01:52]} 49. fxe4 {[%emt 0:01:48]} fxe4 {[%emt 0:00:04]} 50. Nf6 {[%emt 0:00:35]} e3 {[%emt 0:00:55]} 51. Kd3 {[%emt 0:00:06]} e2 {[%emt 0:00:10]} 52. Kd2 {[%emt 0:00:03]} Kc5 {[%emt 0:01:52]} 53. h5 {[%emt 0:00:56]} Nxh5 {[%emt 0:00:03]} (53... Kxb5 $2 {too greedy.} 54. h6 $18) 54. Nxh5 {[%emt 0:00:04]} Kxb5 {[%emt 0:00:01]} (54... e1=B+ {simplifies} 55. Kxe1 Kxb5 56. Kd2 Ka4) 55. Nf4 {[%emt 0:00:18]} Kb4 {[%emt 0:00:16]} 56. Nxe2 {[%emt 0:00:36]} Ka3 {[%emt 0:00:03]} 57. Nc3 {[%emt 0:00:43]} b5 {[%emt 0:00:02]} 58. Nxb5+ {[%emt 0:00:47]} (58. Kc2 $5 b4 $8 59. Nb1+ Kxa2 60. Nc3+ Ka3 61. Nb5+ Ka2 62. Nc3+ Ka3 63. Nb5+ Ka4 64. Nc3+ bxc3 (64... Ka3 65. Nb1+ Ka4 66. Nc3+ bxc3 67. Kxc3 $11) 65. Kxc3 $11) 58... Kxa2 {[%emt 0:00:04]} 59. Kc2 {[%emt 0:00:04]} (59. Kc3 $5) 59... a4 {[%emt 0:00:24]} 60. Nc3+ {[%emt 0:00:28]} Ka3 {[%emt 0:00:10]} 61. Nxa4 {[%emt 0:00:57]} Kxa4 {[%emt 0:00:03]} 1/2-1/2

[Event "7th Sharjah Masters 2024"]
[Site "Sharjah"]
[Date "2024.05.14"]
[Round "1.14"]
[White "Dudin, Gleb"]
[Black "Niemann, Hans Moke"]
[Result "0-1"]
[ECO "E11"]
[WhiteElo "2554"]
[BlackElo "2689"]
[Annotator "TA"]
[PlyCount "118"]
[EventDate "2024.05.13"]
[EventType "swiss"]
[EventCountry "UAE"]
[SourceTitle "playchess.com"]
[Source "ChessBase"]
[SourceQuality "1"]
[TimeControl "5400+30"]

{[%evp 9,118,0,0,6,12,10,12,12,27,3,11,12,35,25,43,36,41,42,41,12,39,26,35,13,29,13,-1,8,30,38,57,49,43,49,30,42,50,54,62,62,53,47,48,29,77,75,78,50,170,126,159,163,148,105,112,58,58,58,58,1,12,0,0,0,0,0,0,0,0,0,0,0,0,0,0,0,0,0,0,0,0,-9,-10,-11,-9,-8,-12,-8,-8,-8,-8,-20,-20,-91,-91,-164,-164,-163,-168,-256,-224,-222,-215,-252,-244,-256,-256,-256,-256,-241,-241]} 1. d4 {[%emt 0:00:17]} Nf6 {[%emt 0:00:18]} 2. Nf3 {[%emt 1:31:13]} d5 {[%emt 0:03:08]} 3. c4 {[%emt 0:00:00]} e6 {[%emt 0:00:26]} 4. g3 {[%emt 0:00:00]} Bb4+ {[%emt 0:00:43]} 5. Bd2 {[%emt 0:00:00]} Be7 {[%emt 0:00:23]} 6. Bg2 {[%emt 0:00:00]} Nbd7 {[%emt 0:00:51]} 7. O-O {[%emt 0:00:00]} c6 {[%emt 0:00:16]} 8. Qc2 {[%emt 0:00:00] The position is equal.} Ne4 {[%emt 0:00:46]} 9. Ne1 {[%emt 0:00:00]} Nxd2 {[%emt 0:02:46]} 10. Nxd2 {[%emt 0:00:00]} Nf6 {[%emt 0:03:14]} 11. Nd3 {[%emt 0:00:00]} a5 {[%emt 0:01:45]} 12. e3 {[%emt 0:00:00]} O-O {[%emt 0:04:49]} 13. Rfc1 {[%emt 0:00:00]} Bd6 {[%emt 0:01:50]} 14. b3 {[%emt 0:00:00]} Qe7 {[%emt 0:01:13]} 15. c5 {[%emt 0:00:00]} Bc7 {[%emt 0:00:16]} 16. Qc3 {[%emt 0:00:00]} h5 {[%emt 0:01:40][%cal Bh7h5,Bh5h4][%mdl 32]} 17. h3 {[%emt 0:00:00]} Nd7 {[%emt 0:03:13]} 18. f4 {[%emt 0:00:00]} f6 {[%emt 0:01:13]} 19. e4 {[%emt 0:00:00]} h4 {[%emt 0:07:52]} 20. g4 {[%emt 0:00:00]} dxe4 {[%emt 0:00:28]} 21. Nxe4 {[%emt 0:00:00]} f5 {[%emt 0:04:46]} 22. gxf5 {[%emt 0:00:00]} Rxf5 {[%emt 0:03:21][%cal Od7f6]} 23. Rf1 {[%emt 0:00:00][%cal Bc1f1,Bf1f2,Bf2g2][%mdl 32]} Nf6 {[%emt 0:06:27]} 24. Nxf6+ {[%emt 0:00:00]} Rxf6 {[%emt 0:05:01]} 25. Ne5 {[%emt 0:00:00]} Bd7 $1 {[%emt 0:00:44]} 26. Be4 {[%emt 0:00:00]} Be8 {[%emt 0:04:22]} (26... Raf8 $11 {might be stronger.}) 27. Qe3 $16 {[%emt 0:01:39]} Bh5 {[%emt 0:00:18]} 28. Rf2 {[%emt 0:00:53] Hoping for Rg2.} Raf8 {[%emt 0:00:52]} (28... Bxe5 $14 29. dxe5 Rf7) 29. Raf1 {[%emt 0:00:20]} Kh8 {[%emt 0:03:16]} 30. Rg2 {[%emt 0:00:56]} Rh6 {[%emt 0:01:29]} 31. a3 {[%emt 0:00:52]} Qe8 {[%emt 0:01:26]} 32. Bd3 {[%emt 0:02:26]} (32. Qd3 $16) 32... Bxe5 $14 {[%emt 0:04:23]} 33. Qxe5 {[%emt 0:00:22][%csl Gg2][%cal Re5g7]} ({Much worse is} 33. fxe5 Rxf1+ 34. Kxf1 Bg6 $11) 33... Bg6 $1 {[%emt 0:05:48] [#]} 34. Kh2 {[%emt 0:07:08]} Qf7 $11 {[%emt 0:02:59]} 35. Bc4 {[%emt 0:01:16]} Bf5 {[%emt 0:00:48]} 36. Rfg1 {[%emt 0:00:12]} Rh7 {[%emt 0:00:13]} 37. b4 {[%emt 0:00:47]} axb4 {[%emt 0:00:42]} 38. axb4 {[%emt 0:00:06]} Qf6 {[%emt 0:00:11]} 39. Re1 {[%emt 0:00:51]} Rh6 {[%emt 0:00:19]} 40. b5 {[%emt 0:00:38]} cxb5 {[%emt 0:00:09]} 41. Bxb5 {[%emt 0:00:21]} (41. Qxf6 {simplifies} Rhxf6 42. Bxb5 Ra8 43. Re3) 41... Rd8 {[%emt 0:00:03]} 42. Qxf6 {[%emt 0:00:41]} Rxf6 {[%emt 0:00:20]} 43. Rd2 {[%emt 0:00:28]} Bg6 {[%emt 0:00:17]} 44. Rg1 {[%emt 0:00:32]} Bh5 {[%emt 0:00:39]} 45. Rg5 {[%emt 0:00:28]} Bf3 {[%emt 0:00:44]} 46. Be2 {[%emt 0:00:33]} Bxe2 {[%emt 0:01:33]} 47. Rxe2 {[%emt 0:00:06]} Rxd4 {[%emt 0:00:05][%mdl 4096] Endgame. KRR-KRR} 48. Rh5+ {[%emt 0:00:44]} Kg8 {[%emt 0:00:03]} 49. Rxh4 {[%emt 0:00:16]} Rc4 {[%emt 0:00:07]} ({Much less strong is} 49... Rfxf4 50. Rxf4 Rxf4 51. Rxe6 $17) 50. Re5 {[%emt 0:00:51]} Kf7 {[%emt 0:00:18][%cal Of6g6]} 51. Rh8 {[%emt 0:00:33]} (51. Kg3 $11 {remains equal.}) 51... Rfxf4 $17 {[%emt 0:00:14]} 52. Rb8 {[%emt 0:00:28]} (52. Rd8 $17) 52... Rf2+ {[%emt 0:00:07]} 53. Kg3 {[%emt 0:00:30]} Rb2 {[%emt 0:00:02] [#] Threatens to win with ...Rc3+.} 54. Rc8 {[%emt 0:00:32]} (54. Re3 {might work better.}) 54... Rb3+ {[%emt 0:01:13]} 55. Kf2 {[%emt 0:00:28]} Rxh3 {[%emt 0:00:05]} 56. Kg2 {[%emt 0:00:31]} Rhc3 {[%emt 0:00:33]} 57. Rc7+ {[%emt 0:00:30]} Kf6 {[%emt 0:00:09]} 58. Re2 {[%emt 0:00:06]} Rxc5 {[%emt 0:00:43]} 59. Rxb7 {[%emt 0:00:55]} Rc2 {[%emt 0:00:11] Black used his chance.   Weighted Error Value: White=0.15 (very precise) /Black=0.09 (flawless) .  Mistake:       	White=5     	Black=2      Inaccurate:     	White=2     	Black=1      OK:         	White=17    	Black=26     Best:        	---       	Black=4      Strong:       	---       	Black=2} 0-1

[Event "7th Sharjah Masters 2024"]
[Site "Sharjah"]
[Date "2024.05.14"]
[Round "1.15"]
[White "Sindarov, Javokhir"]
[Black "Horvath, Dominik"]
[Result "1/2-1/2"]
[ECO "C42"]
[WhiteElo "2684"]
[BlackElo "2554"]
[Annotator "TA"]
[PlyCount "91"]
[EventDate "2024.05.13"]
[EventType "swiss"]
[EventCountry "UAE"]
[SourceTitle "playchess.com"]
[Source "ChessBase"]
[SourceQuality "1"]
[TimeControl "5400+30"]

{[%evp 9,91,18,6,0,0,0,-3,-11,-8,0,0,0,0,0,0,-16,16,0,0,0,0,0,36,27,22,-22,-11,-18,0,-22,9,23,18,0,20,21,18,0,35,33,71,47,70,45,120,104,92,116,91,94,173,164,235,233,205,169,191,191,170,142,156,170,149,38,38,8,8,8,45,40,41,-98,-12,-14,-14,-12,-12,-12,-12,-12,-12,-12,-12,-12]} 1. e4 {[%emt 0:00:02]} e5 {[%emt 0:00:25]} 2. Nf3 {[%emt 0:00:07]} Nf6 {[%emt 0:00:13]} 3. d3 {[%emt 0:04:36]} d5 {[%emt 0:01:06]} 4. exd5 {[%emt 0:03:17]} Qxd5 {[%emt 0:00:34]} 5. Nc3 {[%emt 0:01:16]} Bb4 {[%emt 0:01:11]} 6. Bd2 {[%emt 0:03:50]} Bxc3 {[%emt 0:01:45]} 7. Bxc3 {[%emt 0:00:28]} Nc6 {[%emt 0:00:26]} 8. Be2 {[%emt 0:00:28]} Bf5 {[%emt 0:04:42]} 9. O-O {[%emt 0:06:33]} O-O-O {[%emt 0:00:46]} 10. Re1 {[%emt 0:05:14]} Rhe8 {[%emt 0:15:04]} 11. Nd2 {[%emt 0:11:44]} Nd4 {[%emt 0:02:17]} 12. Bf1 {[%emt 0:01:49]} e4 {[%emt 0:20:51]} 13. Nb3 {[%emt 0:06:40]} Nxb3 {[%emt 0:11:01]} 14. axb3 {[%emt 0:00:14]} exd3 {[%emt 0:00:42]} 15. Rxe8 {[%emt 0:00:05]} Rxe8 {[%emt 0:01:03]} 16. cxd3 {[%emt 0:00:08]} Kb8 {[%emt 0:03:19]} 17. b4 {[%emt 0:02:46] Threatens to win with Bxf6. White is weak on the light squares} Bd7 {[%emt 0:07:17]} 18. Qd2 {[%emt 0:05:41]} a6 {[%emt 0:02:09]} 19. Qf4 {[%emt 0:02:18]} Qf5 {[%emt 0:01:13]} 20. Qxf5 {[%emt 0:01:45]} Bxf5 {[%emt 0:00:05]} 21. f3 {[%emt 0:00:05]} Nd5 {[%emt 0:02:41]} 22. Bxg7 {[%emt 0:03:09]} Nxb4 {[%emt 0:09:19]} 23. Rd1 {[%emt 0:01:23]} Rd8 {[%emt 0:00:53][%cal Ob7b5]} 24. g4 {[%emt 0:02:54]} Bg6 {[%emt 0:00:10][%cal Od8d7]} 25. h4 {[%emt 0:02:54]} h5 {[%emt 0:00:13]} 26. Bf6 {[%emt 0:13:25]} Rd6 {[%emt 0:00:17]} (26... Re8 $14) 27. Be7 $1 $16 {[%emt 0:01:59]} Rd4 {[%emt 0:00:04]} 28. Bc5 {[%emt 0:00:24]} Rf4 {[%emt 0:00:04]} 29. Re1 {[%emt 0:00:07][%cal Re1e8]} b6 {[%emt 0:05:03]} (29... b5 $16) 30. Re8+ $1 $18 {[%emt 0:01:12]} (30. gxh5 bxc5 31. Re8+ Ka7 32. hxg6 fxg6 $11) 30... Ka7 {[%emt 0:00:03] [#]} (30... Kb7 $142 31. Be3 Rxf3) 31. Be3 $1 {[%emt 0:00:25]} Rf6 {[%emt 0:00:09]} (31... Rxf3 32. gxh5 Bxh5 (32... Bxd3 $2 33. Bg2 $18) 33. Bg2 $18) 32. Bd2 {[%emt 0:02:36]} Nc6 {[%emt 0:01:14]} 33. Bg2 {[%emt 0:04:54]} Rd6 {[%emt 0:01:51]} 34. Bc3 {[%emt 0:05:13]} b5 {[%emt 0:02:00][%cal Bb6b5,Bb5b4][%mdl 32]} 35. Rh8 {[%emt 0:02:54]} b4 {[%emt 0:00:12]} 36. Be1 {[%emt 0:00:01]} (36. Bg7 $16) 36... a5 $14 {[%emt 0:01:21][%cal Ba6a5,Ba5a4][%mdl 32]} 37. Bg3 {[%emt 0:00:28]} Rxd3 {[%emt 0:01:39] Hoping for ...a4.} 38. gxh5 {[%emt 0:00:17]} Bf5 {[%emt 0:00:03]} 39. h6 {[%emt 0:00:37][%cal Oh6h7] And now h7! would win.} a4 $1 {[%emt 0:01:15]} 40. Bf1 {[%emt 0:02:45] [#]} (40. Bxc7 $2 a3 41. bxa3 b3 $19 (41... bxa3 $2 42. f4 $19)) (40. Bh3 $14 {stays ahead.} Rxf3 (40... Bxh3 41. h7 $16) 41. Kg2) 40... Rd1 {[%emt 0:02:08]} ({Better is} 40... a3 $1 $17 {[%cal Ra3b2]} 41. bxa3 (41. Bxc7 $2 axb2 42. Bxd3 Bxd3 $19) 41... b3 42. Bxd3 (42. Bxc7 $2 b2 $19) 42... Bxd3) 41. h7 $1 $11 {[%emt 0:00:53] [#] The position is equal.} (41. Bxc7 $2 a3 (41... Bd3 $2 42. Kg2 $19) 42. bxa3 b3 $19 (42... bxa3 $2 43. Bb6+ Kxb6 44. Ra8 $19)) 41... Bxh7 $1 {[%emt 0:00:11]} 42. Rxh7 {[%emt 0:00:02]} a3 $1 {[%emt 0:00:09]} 43. bxa3 {[%emt 0:00:03]} (43. Bxc7 $2 {loses.} axb2 $19) 43... bxa3 {[%emt 0:01:41] aiming for ...a2.} 44. Rxf7 {[%emt 0:00:03][%cal Of7f4] Rf4! would now be deadly.} ({But not} 44. Bf2+ $2 Kb7 45. Rxf7 a2 $19) 44... a2 {[%emt 0:00:10]} 45. Rxc7+ {[%emt 0:00:03]} Kb6 {[%emt 0:00:03]} (45... Ka8 $5 46. Rc8+ $8 (46. Rxc6 $2 {perishes.} a1=Q $19) 46... Kb7 47. Rc7+ Kb6 48. Rxc6+ Kxc6 $11) 46. Rxc6+ $1 {[%emt 0:00:04] White really could win this.   Weighted Error Value: White=0.14 (very precise) /Black=0.16 (very precise) .  Mistake:       	White=2     	Black=4      Inaccurate:     	White=2     	Black=6      OK:         	White=12    	Black=13     Best:        	White=4     	Black=2      Strong:       	White=5     	Black=2      Brilliant:      	---       	Black=1} 1/2-1/2